bitfinex/quotes_ETHUSD_20220212
["timestamp","ask_amount","ask_price","bid_price","bid_amount"]
[1644702984944,4.74448303,2878.7,2878.0,6.5]
[1644702985148,0.00341435,2878.6,2878.1,0.418]
[1644702985351,0.01247053,2880.3,2878.1,0.418]
[1644702985352,0.00341435,2879.2,2878.1,1.418]
[1644702985554,0.00341435,2879.2,2878.1,1.718]
[1644702985555,4.74448303,2879.1,2878.1,1.718]
[1644702985950,0.00341435,2879.0,2878.1,1.718]
[1644702986551,0.00341435,2879.0,2878.1,21.478]
[1644702986754,4.74448303,2879.5,2878.3,2.03652]
[1644702986951,0.00341435,2879.4,2878.4,0.418]
[1644702987152,3.67701435,2879.9,2878.5,19.76]
[1644702987353,0.13819997,2880.1,2878.6,22.04625]
[1644702987354,0.00341435,2879.7,2878.6,22.04625]
[1644702987552,0.68324278,2880.0,2878.7,0.1736]
[1644702987553,0.00341435,2879.8,2878.7,0.1736]
[1644702987753,4.74448303,2879.3,2878.8,0.418]
[1644702988004,0.00341435,2879.8,2878.4,0.418]
[1644702988005,4.74448303,2878.9,2878.4,0.418]
[1644702988203,4.74448303,2878.6,2878.5,0.00256881]
[1644702988405,4.74448303,2879.1,2878.5,0.00256881]
[1644702988605,4.74448303,2879.3,2878.5,0.00256881]
[1644702988805,3.5,2879.8,2878.5,0.00256881]
[1644702988806,0.1736,2879.7,2878.5,0.00256881]
[1644702989104,1.28859997,2880.1,2878.4,0.718]
[1644702989105,4.74448303,2879.3,2878.4,0.718]
[1644702989307,4.74448303,2879.3,2878.5,0.5916]
[1644702989505,4.74448303,2879.3,2878.5,0.60016272]
[1644702989506,0.01006257,2879.2,2878.5,0.60016272]
[1644702989703,0.01347692,2879.2,2878.5,20.66016272]
[1644702989904,0.01006257,2879.2,2878.6,1.0]
[1644702990104,0.01006257,2879.2,2878.7,0.1736]
[1644702990306,0.01006257,2879.2,2878.7,0.5916]
[1644702990507,4.74448303,2878.9,2878.7,0.418]
[1644702990908,0.01006275,2879.0,2878.7,0.418]
[1644702991646,4.74448303,2879.2,2878.7,0.418]
[1644702991846,0.01006279,2879.0,2878.7,0.418]
[1644702992847,4.74448303,2879.2,2878.7,0.418]
[1644702993045,0.01006279,2879.0,2878.7,0.418]
[1644702994047,4.74448303,2879.2,2878.7,0.418]
[1644702994248,0.01006279,2879.0,2878.7,0.418]
[1644702995251,4.74448303,2878.9,2878.7,0.418]
[1644702995506,4.74448303,2878.8,2878.5,0.00256881]
[1644702995710,4.74448303,2878.6,2878.5,0.00256881]
[1644702995904,0.00513762,2878.4,2877.4,0.1736]
[1644702996106,4.74448303,2877.5,2877.4,0.1736]
[1644702996504,4.74448303,2877.5,2877.3,0.1736]
[1644702997108,4.74448303,2877.4,2877.3,0.1736]
[1644702997304,4.74448303,2877.4,2877.2,0.86869]
[1644702998106,4.74448303,2877.8,2877.2,0.86869]
[1644702998307,0.00855197,2878.4,2877.0,0.8916]
[1644702998607,4.74448303,2877.8,2877.0,0.8916]
[1644702998808,4.74448303,2877.2,2877.0,0.5916]
[1644702999008,0.00409862,2878.4,2877.0,0.5916]
[1644702999009,4.74448303,2877.7,2877.0,0.8916]
[1644702999248,0.00409862,2878.4,2877.0,0.8916]
[1644702999448,4.74448303,2877.2,2877.0,0.8916]
[1644702999652,0.00409862,2878.4,2877.0,0.8916]
[1644702999848,0.00409862,2878.4,2877.2,0.86869]
[1644702999849,4.64448303,2877.9,2877.2,0.86869]
[1644703000052,4.64448303,2877.9,2877.2,1.16869]
[1644703000351,4.64448303,2877.5,2877.2,1.16869]
[1644703000548,4.64448303,2877.5,2877.3,0.418]
[1644703000750,0.00068427,2878.4,2877.3,0.418]
[1644703001449,0.00068427,2878.4,2877.7,0.00855852]
[1644703001651,4.64448303,2877.8,2877.7,0.00855852]
[1644703002449,4.64448303,2877.8,2877.3,0.418]
[1644703002651,0.00341435,2878.1,2877.3,0.418]
[1644703002892,4.64448303,2877.4,2877.2,0.00080225]
[1644703003898,4.64448303,2877.4,2877.2,0.00936241]
[1644703004903,0.00341435,2878.0,2877.2,0.00080225]
[1644703005102,4.64448303,2877.3,2877.2,0.00936241]
[1644703005301,4.59448303,2877.3,2877.2,0.00936241]
[1644703005701,0.00341435,2878.0,2877.2,0.00936241]
[1644703006000,4.59448303,2877.3,2877.2,0.00080225]
[1644703006201,4.59448303,2877.6,2877.2,0.00080225]
[1644703006421,0.00341435,2878.0,2877.2,0.00080225]
[1644703006660,0.00341435,2878.0,2877.2,0.17440225]
[1644703006858,4.59448303,2877.5,2877.2,0.17440225]
[1644703007058,0.00068427,2878.4,2877.2,0.17440225]
[1644703007262,4.59448303,2877.6,2877.2,0.17440225]
[1644703007464,4.59448303,2877.6,2877.2,0.18294751]
[1644703007964,0.00068427,2878.4,2877.2,0.18294751]
[1644703007965,4.59448303,2877.3,2877.2,0.00934751]
[1644703008362,4.59448303,2877.3,2877.2,0.00080225]
[1644703009567,4.59789738,2877.8,2877.2,0.00080225]
[1644703009764,4.59448303,2877.3,2877.2,0.00080225]
[1644703010695,4.59448303,2877.9,2877.2,0.00080225]
[1644703011094,4.59448303,2877.9,2877.3,0.418]
[1644703011499,0.00341435,2878.3,2877.3,0.418]
[1644703011701,4.59448303,2877.8,2877.4,0.1736]
[1644703011899,4.59448303,2877.8,2877.4,0.5916]
[1644703012101,4.59448303,2877.8,2877.4,0.418]
[1644703012400,4.59448303,2877.8,2877.5,0.00854452]
[1644703012702,4.59448303,2877.6,2877.5,0.00854452]
[1644703013304,0.17701435,2878.3,2876.9,0.418]
[1644703013505,4.59448303,2877.8,2877.4,0.00854467]
[1644703014340,0.69011356,2878.2,2877.0,0.1736]
[1644703014541,4.59448303,2877.5,2877.0,0.5916]
[1644703014741,4.59448303,2877.5,2877.0,0.418]
[1644703014942,4.59448303,2877.5,2877.1,0.1736]
[1644703015345,4.59448303,2877.8,2877.1,0.1736]
[1644703015549,0.00341435,2878.3,2877.2,0.418]
[1644703015749,0.00341435,2878.3,2877.2,0.718]
[1644703015948,0.00341435,2878.3,2877.3,4.45592914]
[1644703016147,0.00341435,2878.3,2877.4,1.418]
[1644703016548,0.00068427,2878.4,2877.5,0.86854]
[1644703016747,0.00068427,2878.4,2877.6,0.418]
[1644703016947,0.00409862,2878.4,2877.6,0.418]
[1644703017147,0.00068427,2878.4,2877.7,0.00854378]
[1644703017346,0.00409862,2878.4,2877.8,0.418]
[1644703017548,0.00068427,2878.4,2877.8,0.418]
[1644703017751,0.00068427,2878.4,2877.8,0.718]
[1644703018592,0.00068427,2878.4,2877.8,1.4694]
[1644703018794,0.00068427,2878.4,2877.9,1.04208]
[1644703019000,0.00068427,2878.4,2878.0,0.418]
[1644703019198,0.00068427,2878.4,2878.1,0.1736]
[1644703019394,0.00068427,2878.4,2878.2,0.418]
[1644703020893,0.00068427,2878.4,2878.2,0.72655719]
[1644703021394,0.00068427,2878.4,2878.2,0.42655719]
[1644703021648,0.00068427,2878.4,2878.2,0.718]
[1644703021851,0.00068427,2878.4,2878.2,0.72655719]
[1644703022449,0.00068427,2878.4,2878.2,0.42655719]
[1644703022654,0.00068427,2878.4,2878.2,0.00855719]
[1644703022655,4.59448303,2878.3,2878.2,0.00855719]
[1644703022851,4.59448303,2878.3,2877.7,6.5844]
[1644703023050,0.00068427,2878.4,2877.7,0.418]
[1644703023254,0.00068427,2878.4,2878.2,0.00855719]
[1644703024051,0.00068427,2878.4,2877.8,0.1736]
[1644703024252,0.00068427,2878.4,2878.2,0.00855719]
[1644703025253,0.00068427,2878.4,2877.8,0.1736]
[1644703025497,0.00068427,2878.4,2878.2,0.00855719]
[1644703026501,0.00068427,2878.4,2877.8,0.1736]
[1644703026699,0.00068427,2878.4,2878.2,0.00855719]
[1644703027702,0.00068427,2878.4,2877.8,0.418]
[1644703027901,4.59448303,2878.0,2877.8,0.418]
[1644703028103,0.00068427,2878.4,2877.8,0.418]
[1644703028104,4.5951673,2878.4,2877.8,0.418]
[1644703028506,4.59448303,2878.1,2877.8,0.418]
[1644703028803,4.59448303,2878.1,2877.7,0.6]
[1644703028804,4.59448303,2878.1,2877.7,0.3]
[1644703029005,4.59448303,2878.1,2877.8,0.00855823]
[1644703029445,4.59363748,2878.1,2877.8,0.00855823]
[1644703029855,0.00068427,2878.4,2877.9,0.86848]
[1644703030054,0.00068427,2878.4,2878.3,1.0552431]
[1644703030253,0.00068427,2878.4,2878.3,1.9468431]
[1644703030454,0.00068427,2878.4,2878.3,2.2468431]
[1644703030653,0.00068427,2878.4,2878.3,2.41893439]
[1644703030857,0.00068427,2878.4,2878.3,3.41893439]
[1644703031056,0.00068427,2878.4,2878.3,5.15534439]
[1644703031854,0.00068427,2878.4,2878.3,5.97260439]
[1644703032255,0.00068427,2878.4,2878.3,3.32801]
[1644703032655,0.00068427,2878.4,2878.3,2.15441]
[1644703032902,0.00068427,2878.4,2878.3,1.0]
[1644703033098,0.00068427,2878.4,2878.2,1.00855704]
[1644703033298,0.00068427,2878.4,2878.3,0.501]
[1644703034103,0.00068427,2878.4,2878.3,0.801]
[1644703036004,0.00068427,2878.4,2878.3,0.501]
[1644703036405,0.00068427,2878.4,2878.2,0.00855704]
[1644703036655,4.59363748,2878.3,2878.2,0.00855704]
[1644703036853,4.59363748,2878.3,2877.0,0.25]
[1644703036854,0.01711407,2878.1,2877.0,0.25]
[1644703037051,0.01711407,2878.1,2876.5,4.5417]
[1644703037052,4.59363748,2877.1,2876.5,4.5417]
[1644703037255,4.59363748,2877.5,2876.6,0.1736]
[1644703038452,4.59363748,2877.5,2876.7,0.501]
[1644703038655,4.59363748,2877.5,2876.8,0.1736]
[1644703038855,4.59363748,2877.5,2876.9,0.00209101]
[1644703039752,0.57836176,2877.9,2876.8,0.1736]
[1644703039753,4.59363748,2877.9,2876.8,0.1736]
[1644703039954,4.59363748,2877.9,2877.1,0.00694827]
[1644703040153,4.59363748,2877.9,2877.2,0.1736]
[1644703040595,0.01711407,2878.1,2877.3,0.501]
[1644703040792,0.01711407,2878.1,2877.4,19.76]
[1644703040995,0.01711407,2878.1,2877.4,20.261]
[1644703041195,0.01711407,2878.1,2877.6,0.00694706]
[1644703041396,0.01711407,2878.1,2877.7,0.501]
[1644703041798,0.01711407,2878.1,2877.7,0.801]
[1644703042300,0.01711407,2878.1,2877.8,0.00714628]
[1644703042500,0.01711407,2878.1,2877.8,0.50814628]
[1644703042700,0.01711407,2878.1,2877.8,0.80814628]
[1644703043100,0.01711407,2878.1,2877.8,1.10814628]
[1644703043299,0.01711407,2878.1,2877.8,1.101]
[1644703043500,0.01711407,2878.1,2877.8,1.10814615]
[1644703044546,0.01711407,2878.1,2877.8,1.101]
[1644703044746,0.01711407,2878.1,2877.8,1.10814615]
[1644703045550,0.01711407,2878.1,2877.8,2.97663615]
[1644703045751,0.01711407,2878.1,2877.8,1.101]
[1644703046151,0.01711407,2878.1,2877.8,1.10811693]
[1644703046752,4.59363748,2877.9,2877.8,1.10811693]
[1644703046951,0.01711407,2878.1,2877.8,1.101]
[1644703047152,0.01711407,2878.1,2877.8,1.10811693]
[1644703047897,4.59363748,2877.9,2877.8,1.10811693]
[1644703048096,4.59363748,2877.9,2877.8,1.101]
[1644703048598,4.59363748,2877.9,2877.8,0.50811693]
[1644703048994,4.59363748,2877.9,2877.8,0.80811693]
[1644703049395,4.59363748,2877.9,2877.8,1.101]
[1644703049796,4.59363748,2877.9,2877.8,0.6]
[1644703050297,4.59363748,2877.9,2877.7,0.00712147]
[1644703050498,4.59363748,2877.9,2877.1,0.501]
[1644703050698,4.59363748,2877.7,2877.1,0.501]
[1644703051641,0.01711407,2878.1,2877.1,0.801]
[1644703051851,4.59363748,2877.4,2877.1,0.801]
[1644703052046,4.59363748,2877.4,2877.3,0.00712259]
[1644703053048,4.59363748,2877.4,2876.4,0.84782]
[1644703053247,3.80659578,2877.6,2877.2,0.00714219]
[1644703053447,4.59363748,2877.3,2877.2,0.00714219]
[1644703054249,4.59363748,2877.3,2876.1,0.1736]
[1644703054451,0.67371775,2877.2,2877.1,0.00714244]
[1644703054651,5.26735523,2877.2,2877.1,0.00714244]
[1644703055406,5.26735523,2877.2,2876.2,0.2]
[1644703055598,4.59363748,2876.3,2875.7,9.39191]
[1644703055800,4.59363748,2875.8,2875.7,7.6538]
[1644703056199,4.59363748,2875.8,2875.7,0.1738]
[1644703056704,4.59363748,2876.2,2875.7,0.1738]
[1644703057502,0.61096593,2876.4,2875.7,0.1738]
[1644703057704,4.59363748,2876.0,2875.7,0.1738]
[1644703057903,0.61096593,2876.4,2875.5,0.1738]
[1644703058104,4.59363748,2876.2,2875.8,0.00712272]
[1644703058705,0.61096593,2876.4,2875.8,0.00712272]
[1644703058906,4.59363748,2876.1,2875.5,0.1738]
[1644703059142,4.59363748,2876.1,2875.9,0.0071226]
[1644703059544,3.49859652,2876.1,2875.9,0.0071226]
[1644703060246,3.49859652,2876.1,2875.5,0.1738]
[1644703060445,3.49859652,2876.1,2875.9,0.00714732]
[1644703061346,3.49859652,2876.1,2875.5,0.1738]
[1644703061544,0.71281684,2876.5,2875.9,0.00714732]
[1644703061950,3.49859652,2876.0,2875.9,0.00714732]
[1644703062550,3.49859652,2876.0,2875.2,0.02859545]
[1644703062551,3.49859652,2876.0,2874.6,0.501]
[1644703062750,5.0,2876.3,2874.6,0.25]
[1644703062751,3.49859652,2875.2,2874.6,0.25]
[1644703064009,3.6885,2876.3,2875.0,0.00712445]
[1644703064206,1.0,2877.6,2875.2,7.6538]
[1644703064207,3.49859652,2876.2,2875.2,7.6538]
[1644703064408,3.49859652,2876.2,2875.3,0.501]
[1644703064614,3.49859652,2876.2,2875.4,0.1738]
[1644703064807,0.70291954,2876.5,2875.4,0.6748]
[1644703065013,3.49859652,2875.9,2875.4,0.6748]
[1644703065207,3.49859652,2875.9,2875.7,0.00712284]
[1644703066215,3.49859652,2875.9,2875.4,1.2748]
[1644703066417,3.49859652,2876.0,2875.7,0.00712284]
[1644703067265,3.49859652,2876.0,2875.4,1.2748]
[1644703067266,3.49859652,2876.0,2875.4,0.7738]
[1644703067466,3.49859652,2876.0,2875.5,0.501]
[1644703067671,3.49859652,2876.0,2875.7,0.00712637]
[1644703067865,3.49859652,2876.0,2875.8,0.1738]
[1644703068066,8.60250457,2877.1,2875.8,0.1738]
[1644703068266,3.49859652,2876.2,2875.8,0.1738]
[1644703068466,4.00239994,2877.1,2875.8,0.1738]
[1644703068665,3.49859652,2876.4,2875.8,0.1738]
[1644703068868,1.2115,2877.3,2875.8,0.1738]
[1644703068869,3.49859652,2877.3,2876.3,0.00712488]
[1644703069067,8.9074,2878.0,2876.3,0.00712488]
[1644703069068,1.1886,2878.0,2876.4,0.6748]
[1644703069268,3.68421407,2878.1,2876.4,0.6748]
[1644703069269,1.68907952,2877.7,2876.4,9.1139]
[1644703069467,1.68907952,2877.7,2876.5,0.3]
[1644703069668,1.68907952,2877.7,2876.6,0.6746]
[1644703069868,1.68907952,2877.7,2876.7,19.76]
[1644703070069,1.68907952,2877.7,2876.9,0.00712339]
[1644703070270,1.68907952,2877.7,2877.0,0.6746]
[1644703070499,1.68907952,2877.7,2877.0,0.501]
[1644703070897,1.68907952,2877.7,2877.0,1.66968]
[1644703071097,1.68907952,2877.7,2877.0,1.96968]
[1644703071296,1.68907952,2877.7,2877.2,0.00712213]
[1644703071497,1.68907952,2877.7,2877.3,0.501]
[1644703071902,1.68907952,2877.7,2877.4,0.3]
[1644703072500,1.68907952,2877.7,2877.4,0.30712175]
[1644703073402,1.68907952,2877.7,2877.4,0.3]
[1644703073602,1.68907952,2877.7,2877.4,0.30712163]
[1644703074646,1.68907952,2877.7,2877.4,0.3]
[1644703074845,1.68907952,2877.7,2877.4,0.30712161]
[1644703075846,1.68907952,2877.7,2877.4,0.3]
[1644703076047,1.68907952,2877.6,2877.4,0.30712161]
[1644703076447,1.68907952,2877.6,2877.4,0.00712161]
[1644703077150,1.68907952,2877.6,2877.4,0.3]
[1644703077350,1.68907952,2877.6,2877.4,0.30712173]
[1644703077550,1.68907952,2877.6,2877.4,0.60712173]
[1644703078100,1.68907952,2877.6,2877.4,0.6]
[1644703078298,1.68907952,2877.6,2877.4,0.3]
[1644703078497,1.68907952,2877.6,2877.4,0.30712172]
[1644703079298,1.68907952,2877.6,2877.4,0.3]
[1644703079699,1.68907952,2877.6,2877.4,0.30712172]
[1644703080602,1.68907952,2877.6,2877.4,0.3]
[1644703080801,1.68907952,2877.6,2877.4,0.30712172]
[1644703081001,1.68907952,2877.6,2877.4,0.00712172]
[1644703081747,1.68907952,2877.6,2876.8,0.6746]
[1644703081951,0.63555923,2877.8,2876.8,0.1736]
[1644703081952,2.30658408,2876.9,2876.8,0.1736]
[1644703082248,2.30658408,2876.9,2876.2,0.25]
[1644703082548,1.68907952,2876.4,2876.0,0.6748]
[1644703082747,1.68907952,2876.4,2876.0,1.9748]
[1644703083348,1.68907952,2876.4,2876.1,0.00712494]
[1644703083546,0.61750456,2876.9,2876.2,0.1738]
[1644703083747,1.68907952,2876.4,2876.2,0.1738]
[1644703084446,1.68907952,2876.4,2876.2,0.00712469]
[1644703084647,1.68907952,2876.4,2876.3,0.1738]
[1644703085698,1.68907952,2876.4,2876.2,0.00713828]
[1644703086496,1.68907952,2876.4,2876.0,1.2748]
[1644703086901,1.68907952,2876.4,2876.2,0.0071384]
[1644703087702,1.68907952,2876.4,2876.0,1.2748]
[1644703088003,1.68907952,2876.1,2876.0,0.1738]
[1644703088204,1.68907952,2876.1,2875.4,0.1738]
[1644703088405,3.71597499,2876.6,2875.4,0.1738]
[1644703088602,3.71597499,2876.6,2875.3,0.1738]
[1644703088603,1.68907952,2875.5,2875.3,0.1738]
[1644703089002,1.2389,2876.6,2875.3,0.1738]
[1644703089249,1.68907952,2875.7,2875.3,0.180925]
[1644703090251,1.68907952,2875.7,2875.3,0.1738]
[1644703090453,1.68907952,2875.7,2875.4,0.00712475]
[1644703091253,3.56614601,2876.6,2875.4,0.00712475]
[1644703091456,3.56614601,2876.6,2875.2,0.9748]
[1644703091457,1.68907952,2875.5,2875.2,0.9748]
[1644703091655,3.60895998,2875.9,2875.4,0.00712463]
[1644703091856,1.68907952,2875.5,2875.4,0.00712463]
[1644703092657,1.68907952,2875.5,2875.2,0.1738]
[1644703096104,1.68907952,2875.4,2875.2,0.1738]
[1644703096399,1.68907952,2875.4,2875.2,0.18233087]
[1644703096645,0.62332461,2876.0,2875.2,0.18233087]
[1644703097050,1.68800067,2875.4,2875.2,0.18233087]
[1644703097453,0.27639994,2876.5,2875.3,0.501]
[1644703097454,1.68800067,2876.5,2875.3,0.501]
[1644703097653,0.01291294,2877.2,2875.3,0.501]
[1644703097654,3.5,2876.9,2875.7,0.94357685]
[1644703097853,3.613,2877.4,2875.8,1.02162]
[1644703097854,1.68800067,2876.8,2875.8,1.02162]
[1644703098051,1.68800067,2876.8,2875.8,1.14689129]
[1644703098252,1.68800067,2877.0,2875.8,1.49371129]
[1644703098451,1.68800067,2877.0,2876.0,0.86902]
[1644703098654,1.68800067,2877.0,2876.1,0.6748]
[1644703098851,1.68800067,2877.0,2876.3,0.00852776]
[1644703099253,3.613,2877.4,2876.3,0.00852776]
[1644703099254,0.56214995,2877.2,2876.4,0.801]
[1644703099454,1.68800067,2876.8,2876.4,0.801]
[1644703099653,0.56214995,2877.2,2876.4,0.801]
[1644703099851,0.56214995,2877.2,2876.5,0.3]
[1644703100052,0.56214995,2877.2,2876.5,0.801]
[1644703100253,1.68800067,2876.8,2876.5,0.80952717]
[1644703100697,0.56214995,2877.2,2876.5,0.80952717]
[1644703101097,0.56214995,2877.2,2876.5,0.801]
[1644703101098,1.68800067,2877.0,2876.5,0.801]
[1644703101299,1.68800067,2877.0,2876.5,1.80952702]
[1644703101496,1.68800067,2877.0,2876.5,0.80952702]
[1644703101701,1.68800067,2877.0,2876.5,1.80952702]
[1644703102102,3.642,2877.6,2876.5,1.80952702]
[1644703102302,0.01711407,2878.1,2876.6,5.24754184]
[1644703102303,0.27639994,2878.0,2876.6,5.24754184]
[1644703102500,0.19091407,2878.1,2876.7,0.501]
[1644703102501,1.68800067,2877.9,2876.7,0.501]
[1644703102702,1.68800067,2877.9,2876.9,1.7373]
[1644703102901,1.68800067,2877.9,2877.0,0.501]
[1644703103300,1.68800067,2877.9,2877.0,1.71699]
[1644703103500,1.68800067,2877.9,2877.1,0.3]
[1644703103700,1.68800067,2877.9,2877.3,0.00852465]
[1644703103906,0.01711407,2878.1,2877.4,1.36965]
[1644703104145,1.68800067,2877.7,2877.4,1.96965]
[1644703104852,1.68800067,2878.0,2877.4,1.97655326]
[1644703105450,0.01711407,2878.1,2877.4,1.97655326]
[1644703105651,0.01711407,2878.1,2877.5,4.14084507]
[1644703105848,0.01711407,2878.1,2877.6,0.6746]
[1644703106047,0.01711407,2878.1,2877.6,1.50790278]
[1644703106249,0.01711407,2878.1,2877.6,2.10790278]
[1644703106450,0.01711407,2878.1,2877.6,1.10790278]
[1644703106647,0.01711407,2878.1,2877.6,2.27999407]
[1644703106851,0.01711407,2878.1,2877.7,0.1736]
[1644703107152,0.01711407,2878.1,2877.8,1.96951]
[1644703107652,1.70511474,2878.1,2877.8,1.96951]
[1644703108100,1.70511474,2878.1,2877.8,2.101]
[1644703108499,1.70511474,2878.1,2877.8,2.1079023]
[1644703108699,1.70511474,2878.1,2877.8,1.1079023]
[1644703108901,1.70511474,2878.1,2877.8,2.1079023]
[1644703109105,1.70511474,2878.1,2877.8,1.1079023]
[1644703109303,1.70511474,2878.1,2877.8,2.1079023]
[1644703109304,0.01711407,2878.1,2877.8,2.1079023]
[1644703109504,0.01711407,2878.1,2877.8,1.101]
[1644703109704,0.01711407,2878.1,2877.8,2.101]
[1644703109908,0.01711407,2878.1,2877.8,1.101]
[1644703110103,0.01711407,2878.1,2877.8,2.101]
[1644703110303,0.01711407,2878.1,2877.8,1.101]
[1644703110506,0.01711407,2878.1,2877.8,2.101]
[1644703111306,1.68800067,2878.0,2877.8,2.101]
[1644703111506,1.68800067,2878.0,2877.8,1.101]
[1644703112546,1.68800067,2878.0,2877.8,0.501]
[1644703112746,0.01711407,2878.1,2877.8,0.501]
[1644703113347,0.00341435,2878.4,2877.8,0.501]
[1644703113348,0.00341435,2878.4,2877.9,6.72209129]
[1644703113548,0.01008098,2878.6,2878.0,0.501]
[1644703113846,0.01008098,2878.6,2878.1,0.1736]
[1644703114046,0.01008098,2878.6,2878.2,0.501]
[1644703114253,1.69141502,2878.7,2878.2,0.501]
[1644703114449,0.53787584,2879.0,2878.2,0.501]
[1644703114653,1.68800067,2878.3,2878.2,0.501]
[1644703114850,0.01008216,2878.6,2878.2,0.501]
[1644703115050,0.01008216,2878.6,2878.2,1.66929]
[1644703115250,0.01008216,2878.6,2878.2,1.4829]
[1644703115503,0.00341435,2879.0,2878.3,0.1736]
[1644703115698,0.0075122,2878.6,2878.4,0.501]
[1644703115914,0.0075122,2878.6,2878.5,19.9336]
[1644703116102,0.0075122,2878.6,2878.5,0.1736]
[1644703116306,0.0075122,2878.6,2878.5,1.6746]
[1644703116504,1.22e-05,2878.6,2878.5,0.6746]
[1644703116708,0.00341435,2879.3,2878.5,2.54863129]
[1644703116912,1.68800067,2879.9,2878.6,0.34682]
[1644703116913,0.00961945,2878.7,2878.6,0.34682]
[1644703117106,0.00961945,2878.7,2878.6,20.60782]
[1644703117107,1.945e-05,2878.7,2878.6,20.60782]
[1644703117304,0.03847203,2879.1,2878.7,6.55]
[1644703117506,0.03847203,2879.1,2878.8,0.501]
[1644703117705,0.03847203,2879.1,2878.8,1.501]
[1644703117905,0.00341435,2879.8,2878.8,0.501]
[1644703118106,1.68800067,2879.6,2878.8,0.801]
[1644703118511,1.69141502,2879.6,2878.8,0.801]
[1644703118710,0.00341435,2879.6,2878.8,0.801]
[1644703118911,0.1736,2880.5,2878.9,7.3847]
[1644703118912,1.68800067,2879.4,2878.9,7.3847]
[1644703119147,0.00341435,2880.4,2879.0,0.501]
[1644703119345,1.68800067,2879.4,2879.0,1.801]
[1644703119548,1.68800067,2879.4,2879.0,2.101]
[1644703119746,1.68800067,2879.6,2879.2,0.86811]
[1644703120448,0.01008788,2879.5,2879.2,1.16811]
[1644703120648,0.01008788,2879.5,2879.2,1.46811]
[1644703121550,1.68800067,2879.6,2879.2,1.46811]
[1644703121751,0.01008793,2879.5,2879.2,1.46811]
[1644703122451,1.68800067,2879.3,2879.2,0.86811]
[1644703122650,1.68800067,2879.3,2879.1,1.0]
[1644703122909,1.68800067,2879.3,2879.1,0.501]
[1644703123102,0.01008793,2879.5,2879.1,0.3]
[1644703123303,1.6980886,2879.5,2879.2,0.86811]
[1644703123503,1.6980886,2879.5,2879.0,0.501]
[1644703123904,1.68800067,2879.5,2879.0,0.801]
[1644703124105,0.01008802,2879.4,2879.0,0.801]
[1644703124303,1.68800067,2879.2,2879.0,0.801]
[1644703124504,0.01008802,2879.4,2879.0,0.801]
[1644703125104,1.69143457,2879.6,2879.0,0.801]
[1644703125306,0.00939416,2879.3,2879.0,0.801]
[1644703125905,1.68800067,2879.1,2879.0,0.801]
[1644703126952,0.0093943,2879.2,2879.0,0.801]
[1644703127154,0.0034339,2879.5,2879.4,0.387837]
[1644703127355,0.03757155,2879.6,2879.4,0.387837]
[1644703127553,0.0034339,2880.2,2879.4,0.387837]
[1644703127853,1.59739497,2879.6,2879.4,0.387837]
[1644703128459,1.59739497,2879.6,2878.7,0.1736]
[1644703128460,0.77567399,2879.2,2878.7,0.1736]
[1644703128657,1.59739497,2878.8,2878.4,0.1736]
[1644703128858,1.59739497,2878.5,2878.1,0.501]
[1644703129057,0.0034339,2878.8,2878.0,0.1736]
[1644703129257,1.59739497,2878.3,2878.1,0.501]
[1644703130058,1.59739497,2878.3,2878.1,0.801]
[1644703130262,1.59739497,2878.3,2878.2,0.3]
[1644703130700,1.59739497,2878.6,2878.2,0.3]
[1644703131304,1.59739497,2878.6,2878.3,0.00867031]
[1644703131503,0.0034339,2879.1,2878.3,0.18227031]
[1644703131701,0.77567399,2879.2,2878.3,0.18227031]
[1644703131702,1.59739497,2878.4,2878.3,0.18227031]
[1644703132302,0.77567399,2879.2,2878.3,0.1736]
[1644703132303,0.0034339,2879.1,2878.3,0.1736]
[1644703132605,1.54739497,2878.7,2878.3,0.1736]
[1644703132803,1.54739497,2878.6,2878.3,0.1736]
[1644703133603,1.54739497,2878.6,2878.4,0.501]
[1644703133803,1.54739497,2878.6,2878.4,0.801]
[1644703134004,1.54739497,2878.6,2878.4,1.101]
[1644703134645,0.77910789,2879.2,2878.4,1.101]
[1644703134848,1.54739497,2878.5,2878.4,1.101]
[1644703135046,1.54739497,2878.8,2878.4,1.101]
[1644703136855,1.54739497,2878.5,2878.4,0.501]
[1644703138095,1.54739497,2878.7,2878.4,0.801]
[1644703138495,1.54739497,2878.7,2878.4,0.501]
[1644703138696,1.54739497,2878.5,2878.4,0.801]
[1644703139102,1.54739497,2878.7,2878.4,0.801]
[1644703139301,0.77910789,2879.2,2878.4,2.53753]
[1644703139302,1.54739497,2878.9,2878.4,2.53753]
[1644703139503,1.54739497,2878.9,2878.6,0.86822]
[1644703139703,1.54739497,2879.1,2878.7,0.501]
[1644703139902,2.32306896,2879.2,2878.7,0.501]
[1644703140505,1.54739497,2879.0,2878.7,0.501]
[1644703141104,1.54739497,2879.0,2878.7,1.36926]
[1644703141749,1.54739497,2879.0,2878.7,0.501]
[1644703142152,1.54739497,2879.1,2878.7,0.50975849]
[1644703142649,1.54739497,2879.1,2878.7,1.37801849]
[1644703142851,0.77567399,2879.2,2878.7,1.37801849]
[1644703143055,0.77567399,2879.2,2878.7,1.36926]
[1644703143454,1.54739497,2878.9,2878.8,0.00875833]
[1644703143755,0.77567399,2879.2,2878.8,0.50975833]
[1644703143756,1.54739497,2879.1,2878.8,0.50975833]
[1644703143955,1.54739497,2879.1,2878.8,0.68335833]
[1644703144157,1.54739497,2879.1,2878.8,0.98335833]
[1644703144356,1.54739497,2879.1,2878.8,0.9746]
[1644703144554,0.77567399,2879.2,2878.8,0.98335826]
[1644703144757,1.54739497,2878.9,2878.8,0.98335826]
[1644703144961,1.54739497,2878.9,2878.8,0.00875826]
[1644703145256,1.54739497,2878.9,2877.9,0.1736]
[1644703145257,6.55,2878.8,2877.9,0.1736]
[1644703145511,1.54739497,2878.0,2877.3,0.1736]
[1644703145716,1.54739497,2877.4,2876.5,0.1736]
[1644703145910,1.54739497,2877.4,2876.3,0.6746]
[1644703145911,1.54739497,2877.0,2876.3,0.6746]
[1644703146309,1.54739497,2877.0,2876.3,20.261]
[1644703146510,1.54739497,2877.0,2876.4,0.1738]
[1644703147010,1.54739497,2877.0,2876.5,0.50346119]
[1644703147509,0.5103227,2877.6,2876.5,0.50346119]